bitfinex-derivatives/quotes_ETHF0:USTF0_20220108
["timestamp","ask_amount","ask_price","bid_price","bid_amount"]
[1641643210525,17.35,3221.8,3221.2,2.92359]
[1641643210827,0.264788,3221.7,3221.2,2.92359]
[1641643212728,1.080188,3221.7,3221.2,2.00479]
[1641643215033,4.0,3221.4,3221.2,2.00479]
[1641643215231,0.264788,3221.5,3221.2,2.00479]
[1641643215432,4.0,3221.9,3221.2,2.00479]
[1641643215831,2.408548,3221.8,3221.2,2.00479]
[1641643216032,5.93346969,3221.8,3221.2,2.00479]
[1641643216733,2.408548,3221.8,3221.2,2.00479]
[1641643217534,0.264788,3221.8,3221.2,2.00479]
[1641643218235,0.640787,3221.7,3221.2,2.00479]
[1641643218432,0.264788,3221.6,3221.2,2.00479]
[1641643218632,4.0,3221.4,3221.2,2.00479]
[1641643218834,4.0,3221.4,3221.3,1.28362508]
[1641643219032,4.264788,3221.4,3221.3,1.28362508]
[1641643220136,4.264788,3221.4,3221.3,0.78821423]
[1641643220337,4.264788,3221.4,3220.8,1.31369039]
[1641643220338,4.264788,3221.4,3220.8,0.78821423]
[1641643222137,6.269578,3221.4,3220.8,0.78821423]
[1641643222540,4.0,3220.9,3220.8,0.78821423]
[1641643222741,0.640787,3220.8,3220.5,0.49548615]
[1641643222941,0.640787,3220.8,3220.4,2.00479]
[1641643223139,5.232729,3220.7,3220.4,2.00479]
[1641643223337,7.394693,3220.7,3220.4,2.00479]
[1641643223938,2.161964,3220.7,3220.4,2.00479]
[1641643225441,2.161964,3220.7,3220.5,0.49550756]
[1641643227944,2.426752,3220.7,3220.5,0.49550756]
[1641643228848,2.161964,3220.7,3220.5,0.49550756]
[1641643229049,2.161964,3220.7,3220.5,1.40710756]
[1641643229851,2.161964,3220.7,3220.5,2.90710756]
[1641643230050,2.161964,3220.7,3220.6,0.49550756]
[1641643231451,2.00479,3221.4,3220.6,0.49550756]
[1641643231751,0.905575,3221.3,3220.6,0.49550756]
[1641643232151,0.905575,3221.3,3221.1,2.00479]
[1641643233753,0.16851896,3221.9,3221.1,2.00479]
[1641643233955,0.640787,3221.5,3221.1,2.00479]
[1641643234355,5.231726,3221.4,3221.1,2.00479]
[1641643236256,9.231726,3221.4,3221.1,2.00479]
[1641643238561,1.5,3221.3,3221.1,2.00479]
[1641643238760,0.264788,3221.2,3220.4,2.00479]
[1641643238961,4.0,3220.7,3220.4,2.00479]
[1641643239260,5.608882,3220.6,3220.4,2.00479]
[1641643239461,6.191182,3220.6,3220.4,2.00479]
[1641643239861,6.45597,3220.6,3220.4,2.00479]
[1641643240061,1.223087,3220.6,3220.4,2.00479]
[1641643240462,0.640787,3220.6,3220.4,2.00479]
[1641643241062,2.00479,3221.0,3220.4,2.00479]
[1641643241463,0.640787,3220.9,3220.4,2.00479]
[1641643241662,5.608651,3220.9,3220.4,2.00479]
[1641643242764,5.608651,3220.9,3220.5,1.28490593]
[1641643244074,5.608651,3220.9,3220.6,0.78938297]
[1641643244875,0.264788,3220.8,3220.6,0.78938297]
[1641643245275,0.264788,3220.8,3220.5,1.28490593]
[1641643246276,4.967941,3220.7,3220.5,1.28490593]
[1641643246678,0.264788,3220.6,3220.5,1.28490593]
[1641643247677,0.264788,3220.6,3220.5,0.78938297]
[1641643247880,0.264788,3220.6,3220.4,2.79417297]
[1641643248381,0.640787,3220.9,3220.4,2.79417297]
[1641643248979,2.191751,3220.8,3220.4,2.79417297]
[1641643249180,7.159692,3220.8,3220.4,2.79417297]
[1641643249378,0.264788,3220.7,3220.4,2.79417297]
[1641643249579,0.264788,3220.7,3220.4,0.78938297]
[1641643249779,0.264788,3220.7,3220.6,0.78938297]
[1641643251085,0.264788,3220.7,3220.5,0.78938297]
[1641643251883,1.017388,3220.7,3220.5,0.78938297]
[1641643252285,0.7526,3220.7,3220.5,0.78938297]
[1641643253586,0.7526,3220.7,3220.6,0.78938297]
[1641643253987,1.017388,3220.7,3220.6,0.78938297]
[1641643254686,1.017388,3220.7,3220.5,0.78938297]
[1641643255286,5.017388,3220.7,3220.5,0.78938297]
[1641643255786,4.968018,3220.6,3220.5,0.78938297]
[1641643257189,4.968018,3220.6,3220.3,0.78938297]
[1641643257388,0.264788,3220.5,3220.3,0.78938297]
[1641643257689,4.968326,3220.4,3220.3,0.78938297]
[1641643258594,4.968326,3220.4,3220.2,0.78938297]
[1641643258891,0.264788,3220.3,3220.2,0.78938297]
[1641643259692,5.233346,3220.3,3220.2,0.78938297]
[1641643260092,18.583346,3220.3,3220.2,0.78938297]
[1641643260691,18.583346,3220.3,3220.0,1.28490261]
[1641643260895,4.640787,3220.2,3220.0,1.28490261]
[1641643261395,5.233577,3220.1,3220.0,1.28490261]
[1641643263598,5.233577,3220.1,3220.0,0.49551964]
[1641643264596,5.233577,3220.1,3220.0,1.28659158]
[1641643265498,20.083577,3220.1,3220.0,1.28659158]
[1641643265698,20.083577,3220.1,3219.5,1.31369039]
[1641643265898,4.0,3219.7,3219.5,1.31369039]
[1641643266099,0.264788,3219.6,3219.5,1.31369039]
[1641643266299,7.239139,3219.6,3219.5,1.31369039]
[1641643267199,20.589139,3219.6,3219.4,0.11]
[1641643267401,0.640787,3219.5,3219.4,0.11]
[1641643267600,2.803829,3219.5,3219.4,0.11]
[1641643267799,21.123621,3219.5,3219.1,1.3181753]
[1641643268001,4.0,3219.2,3219.1,1.3181753]
[1641643268299,11.147243,3219.2,3219.1,1.3181753]
[1641643268499,11.147243,3219.2,3218.9,3.58121847]
[1641643268704,0.264788,3219.1,3218.9,3.58121847]
[1641643268902,0.264788,3219.1,3218.9,3.57921847]
[1641643269101,7.116666,3219.0,3218.9,2.00279]
[1641643269301,7.990766,3219.0,3218.9,2.00279]
[1641643269902,21.340766,3219.0,3218.9,2.00279]
[1641643270305,21.340766,3219.0,3218.4,1.57642847]
[1641643270503,17.35,3218.6,3218.3,0.6609456]
[1641643270704,0.640787,3218.5,3217.8,5.2711632]
[1641643270907,5.5,3217.9,3217.8,5.2711632]
[1641643271105,6.4042,3217.9,3217.8,5.2711632]
[1641643271307,26.892779,3217.9,3217.8,5.2711632]
[1641643271506,25.657567,3217.9,3217.8,5.2711632]
[1641643271905,25.657567,3217.9,3217.8,2.62738078]
[1641643272106,27.157567,3217.9,3217.3,1.58044686]
[1641643272306,2.00479,3217.7,3217.3,1.58044686]
[1641643272705,10.068722,3217.7,3217.3,1.58044686]
[1641643273406,10.068722,3217.7,3216.8,4.63217078]
[1641643273607,10.068722,3217.7,3216.8,2.00479]
[1641643273808,23.418722,3217.7,3216.8,2.00479]
[1641643274008,10.068722,3217.7,3216.8,2.00479]
[1641643276412,10.068722,3217.7,3216.9,1.5]
[1641643276610,10.068722,3217.7,3216.8,2.00479]
[1641643277212,10.068722,3217.7,3216.8,3.31672814]
[1641643277412,7.158357,3217.7,3216.8,3.31672814]
[1641643277616,7.158357,3217.7,3217.5,0.110811]
[1641643278413,7.158357,3217.7,3216.8,2.00479]
[1641643278414,7.158357,3217.7,3217.3,2.00479]
[1641643279512,7.158357,3217.7,3217.4,0.110811]
[1641643280117,7.158357,3217.7,3217.3,2.00479]
[1641643281217,7.158357,3217.7,3217.4,0.110811]
[1641643281416,7.158357,3217.7,3217.3,2.00479]
[1641643281816,7.158357,3217.7,3217.5,0.110811]
[1641643284929,2.185784,3217.7,3217.6,0.7745]
[1641643285130,4.0,3218.4,3217.6,0.885311]
[1641643286031,4.972032,3218.3,3217.6,0.885311]
[1641643286431,4.972032,3218.3,3218.1,2.00479]
[1641643287732,4.972032,3218.3,3218.0,0.110811]
[1641643287932,18.322032,3218.3,3217.6,0.11]
[1641643288332,18.58682,3218.3,3217.7,0.110811]
[1641643288538,2.00479,3218.2,3217.7,0.110811]
[1641643288934,4.0,3218.0,3217.7,0.110811]
[1641643289133,4.972109,3218.1,3217.7,0.110811]
[1641643289334,4.972264,3217.9,3217.7,0.110811]
[1641643289635,4.0,3218.0,3217.7,0.110811]
[1641643289833,4.972341,3217.8,3217.7,0.110811]
[1641643290034,4.972264,3217.9,3217.7,0.110811]
[1641643291136,4.972341,3218.1,3217.7,0.110811]
[1641643291434,4.972341,3217.8,3217.6,0.11]
[1641643291635,4.0,3217.9,3217.6,0.11]
[1641643291835,5.236974,3218.1,3217.6,0.11]
[1641643292038,0.264788,3218.1,3217.6,0.11]
[1641643292240,4.972264,3218.0,3217.7,0.110811]
[1641643292940,4.972264,3218.1,3217.7,0.110811]
[1641643293341,4.972264,3217.9,3217.7,0.778511]
[1641643293542,4.972186,3218.0,3217.7,0.778511]
[1641643293941,4.0,3218.4,3217.7,0.778511]
[1641643294543,4.971955,3218.3,3218.0,2.00479]
[1641643294745,4.971955,3218.3,3218.0,2.115601]
[1641643296645,4.9718,3218.4,3218.0,2.115601]
[1641643296845,4.9718,3218.2,3218.0,2.115601]
[1641643297147,18.321877,3218.3,3218.0,2.115601]
[1641643297451,4.971877,3218.2,3218.0,2.115601]
[1641643297647,4.971877,3218.2,3218.0,2.00479]
[1641643298647,0.264788,3218.1,3218.0,2.00479]
[1641643299047,5.236743,3218.1,3218.0,2.00479]
[1641643299647,4.971955,3218.1,3218.0,2.00479]
[1641643300049,4.971955,3218.4,3218.0,2.00479]
[1641643300249,5.236743,3218.4,3218.0,2.00479]
[1641643300448,4.971955,3218.1,3218.0,2.00479]
[1641643300649,4.971723,3218.3,3218.0,2.00479]
[1641643300848,4.971955,3218.1,3218.0,2.00479]
[1641643301249,0.6345,3218.2,3218.0,2.00479]
[1641643301449,4.971955,3218.1,3218.0,2.00479]
[1641643301648,4.971955,3218.1,3217.8,0.110811]
[1641643301849,0.6345,3218.2,3217.8,0.110811]
[1641643302049,4.972109,3218.1,3217.8,0.110811]
[1641643302253,4.0,3218.0,3217.8,0.110811]
[1641643302452,4.0,3218.0,3217.6,0.11]
[1641643302753,4.972186,3217.9,3217.6,0.11]
[1641643303852,4.972418,3218.0,3217.6,0.11]
[1641643304254,4.972418,3217.8,3217.6,0.11]
[1641643304454,0.264788,3218.1,3217.6,0.11]
[1641643304455,4.972341,3218.0,3217.6,0.11]
[1641643304955,0.264788,3217.9,3217.6,0.11]
[1641643305358,5.613205,3217.8,3217.6,0.11]
[1641643305756,0.264788,3217.7,3217.6,0.11]
[1641643306559,5.237361,3217.7,3217.6,0.11]
[1641643308061,4.972573,3217.7,3217.6,0.11]
[1641643310265,4.972573,3217.7,3217.6,0.220811]
[1641643310863,8.00958,3218.5,3217.6,0.220811]
[1641643311563,4.971955,3218.4,3217.6,0.220811]
[1641643312164,0.905575,3218.3,3217.6,0.220811]
[1641643312566,4.972109,3218.2,3217.6,0.220811]
[1641643312767,0.264788,3218.1,3217.6,0.220811]
[1641643312967,0.264788,3218.1,3217.6,0.11]
[1641643313165,4.972264,3218.0,3217.6,0.11]
[1641643314065,8.972264,3218.0,3217.6,0.11]
[1641643314265,0.264788,3217.9,3217.6,0.11]
[1641643314567,4.972418,3217.8,3217.7,2.00479]
[1641643320169,4.972418,3217.9,3217.7,2.00479]
[1641643320570,4.972418,3217.8,3217.7,2.00479]
[1641643320771,4.0,3218.0,3217.7,2.00479]
[1641643320772,4.972341,3217.9,3217.7,2.00479]
[1641643321169,4.972418,3217.8,3217.7,2.00479]
[1641643321370,4.972341,3217.9,3217.7,2.00479]
[1641643321771,4.972418,3217.8,3217.7,2.00479]
[1641643321970,4.972341,3217.9,3217.7,2.00479]
[1641643322370,4.972418,3217.8,3217.7,2.00479]
[1641643322570,4.972341,3217.9,3217.7,2.00479]
[1641643322770,4.972418,3217.8,3217.7,2.00479]
[1641643323275,4.972341,3217.9,3217.7,2.00479]
[1641643323475,4.972418,3217.8,3217.7,2.00479]
[1641643323671,0.264788,3217.8,3217.7,2.00479]
[1641643324073,5.237206,3217.8,3217.7,2.00479]
[1641643324272,0.264788,3217.8,3217.7,2.00479]
[1641643324481,5.237206,3217.8,3217.7,2.00479]
[1641643325475,4.972418,3217.8,3217.7,2.00479]
[1641643325875,4.972418,3217.9,3217.7,2.00479]
[1641643326075,4.972418,3217.9,3217.8,0.110811]
[1641643326476,4.972264,3218.0,3217.8,0.110811]
[1641643326874,7.12072,3217.9,3217.8,0.110811]
[1641643327074,2.148456,3217.9,3217.7,2.78779]
[1641643327275,7.798459,3218.0,3217.7,2.898601]
[1641643327475,4.972264,3217.9,3217.7,2.898601]
[1641643327875,5.04602732,3218.3,3217.7,2.898601]
[1641643327876,4.0,3218.3,3217.7,2.898601]
[1641643328377,4.0,3218.3,3218.1,1.5]
[1641643328676,4.0,3218.3,3218.2,2.115601]
[1641643328877,1.04602732,3218.4,3218.2,2.115601]
[1641643329676,1.04602732,3218.6,3218.2,2.115601]
[1641643330679,1.04602732,3218.6,3218.5,2.00479]
[1641643330876,1.04602732,3218.6,3218.5,2.76349]
[1641643331078,1.04602732,3218.6,3218.5,2.874301]
[1641643331476,1.04602732,3219.0,3218.5,2.874301]
[1641643332076,1.31081532,3219.0,3218.5,2.874301]
[1641643332276,4.0,3218.8,3218.5,2.76349]
[1641643332476,4.0,3218.8,3218.5,2.00479]
[1641643332676,4.971028,3218.7,3218.5,2.00479]
[1641643333279,4.971028,3218.7,3218.5,2.79664002]
[1641643334179,4.971028,3218.7,3218.5,2.00479]
[1641643335486,0.08264062,3218.6,3218.5,2.00479]
[1641643337785,0.84634062,3218.6,3218.5,2.00479]
[1641643338386,5.81752262,3218.6,3218.5,2.00479]
[1641643338789,19.16752262,3218.6,3218.1,0.79185002]
[1641643338986,18.85,3218.2,3218.1,0.79185002]
[1641643339188,17.990787,3218.2,3218.1,0.79185002]
[1641643339387,9.612587,3218.2,3218.1,0.79185002]
[1641643339687,13.4053432,3218.2,3218.1,0.79185002]
[1641643339989,13.4053432,3218.2,3217.6,0.90185002]
[1641643340187,4.0,3217.7,3217.6,0.90185002]
[1641643340786,2.00479,3218.1,3217.6,0.90185002]
[1641643340996,2.269578,3218.1,3217.6,0.90185002]
[1641643341195,1.05452499,3218.0,3217.6,0.220811]
[1641643341395,6.02678899,3218.0,3217.6,0.220811]
[1641643341594,6.29157699,3218.0,3217.6,0.220811]
[1641643341793,6.29157699,3218.0,3217.6,0.11]
[1641643342394,6.29157699,3218.0,3217.7,1.28777261]
[1641643342595,5.237052,3218.0,3217.7,1.28777261]
[1641643346197,5.237052,3218.0,3217.6,1.01266102]
[1641643347600,5.237052,3218.0,3217.8,0.79185002]
[1641643349901,0.0826588,3217.9,3217.6,0.220811]
[1641643350299,4.972418,3217.8,3217.6,0.220811]
[1641643352703,4.972495,3218.0,3217.6,0.220811]
[1641643352904,4.972495,3217.7,3217.6,1.01266102]
[1641643353306,4.972341,3218.0,3217.6,1.01266102]
[1641643353906,4.972341,3218.0,3217.6,0.220811]
[1641643354107,1.5684232,3218.6,3217.6,0.954811]
[1641643354312,1.5684232,3218.6,3218.5,1.5]
[1641643354607,2.63536366,3219.1,3218.5,2.282311]
[1641643354809,3.62362503,3219.6,3219.0,5.50958]
[1641643355008,1.55469253,3219.3,3219.1,0.188451]
[1641643355207,3.62362503,3219.6,3219.2,2.42218296]
[1641643355407,3.62362503,3219.6,3219.5,1.5]
[1641643355608,2.63825039,3219.7,3219.5,1.5]
[1641643355807,2.63825039,3219.7,3219.6,1.5]
[1641643356108,3.29781298,3220.0,3219.6,1.688441]
[1641643356308,3.62362503,3220.2,3219.9,1.5]
[1641643356507,3.62362503,3220.2,3220.1,1.5]
[1641643356708,3.62362503,3220.2,3220.1,1.57763]
[1641643356909,3.62362503,3220.2,3220.1,5.58721]
[1641643357208,0.46685991,3222.0,3220.1,6.76408318]
[1641643357407,0.46685991,3222.0,3220.5,1.5]
[1641643357808,0.46685991,3222.0,3220.1,4.00958]
[1641643357809,0.46685991,3222.0,3221.1,1.5]
[1641643358007,17.568,3222.4,3221.1,2.1772]
[1641643358407,17.568,3222.4,3221.1,2.288011]
[1641643358808,17.568,3222.4,3221.4,2.00479]
[1641643359008,17.568,3222.4,3221.4,4.120391]
[1641643359611,0.218,3222.4,3221.4,4.120391]
[1641643361914,0.218,3222.4,3221.4,5.6720199]
[1641643362412,0.218,3222.4,3222.3,1.5]
[1641643362613,0.218,3222.4,3222.3,3.14248571]
[1641643362812,0.216,3222.4,3222.3,4.69375115]
[1641643363013,0.216,3222.4,3222.3,8.70333115]
[1641643363212,0.216,3222.4,3222.3,7.20333115]
[1641643364412,0.216,3222.4,3222.3,8.70333115]
[1641643364614,0.11,3223.4,3222.3,8.70333115]
[1641643364812,0.11,3223.4,3223.2,1.5]
[1641643365013,0.11,3223.4,3223.3,4.120391]
[1641643365614,0.11,3223.4,3223.3,6.77612002]
[1641643366016,2.62271592,3225.0,3223.3,6.85366002]
[1641643366315,1.55208305,3224.7,3224.0,1.5]
[1641643366517,1.55208305,3224.7,3224.1,0.110811]
[1641643366715,2.62271592,3225.0,3224.1,0.110811]
[1641643366917,2.62271592,3225.0,3224.2,4.00958]
[1641643367618,3.52236341,3224.9,3224.2,4.00958]
[1641643368015,3.21669774,3225.3,3224.2,4.00958]
[1641643368315,3.52241386,3225.2,3224.2,4.00958]
[1641643369017,1.5,3224.5,3224.2,2.00479]
[1641643369217,4.0,3224.5,3224.2,2.00479]
[1641643369519,0.640787,3224.6,3224.2,2.00479]
[1641643370517,0.264788,3224.5,3224.2,2.00479]
[1641643371119,0.374788,3224.3,3224.2,2.00479]
[1641643372521,2.530772,3224.3,3224.2,2.00479]
[1641643374426,4.030772,3224.3,3224.2,2.00479]
[1641643374626,8.2423314,3224.3,3223.7,2.00479]
[1641643374826,5.5,3223.8,3223.7,2.00479]
[1641643375025,6.405575,3223.8,3223.7,2.00479]
[1641643375625,19.755575,3223.8,3223.7,2.00479]
[1641643375828,19.755575,3223.8,3223.1,2.00479]
[1641643376228,24.718739,3223.8,3223.1,2.00479]
[1641643377432,11.368739,3223.8,3223.1,2.00479]
[1641643378634,9.868739,3223.8,3223.1,2.00479]
[1641643378832,23.218739,3223.8,3223.1,2.00479]
[1641643379034,9.868739,3223.8,3223.1,2.00479]
[1641643379233,23.218739,3223.8,3223.1,2.00479]
[1641643379433,4.0,3223.3,3223.1,2.00479]
[1641643379634,4.8216,3223.3,3223.1,2.00479]
[1641643379832,0.264788,3223.2,3223.1,2.00479]
[1641643384235,0.264788,3223.4,3223.1,2.00479]
[1641643385040,0.11,3224.3,3223.3,1.5]
[1641643385337,0.11,3224.3,3223.3,0.767]
[1641643385936,0.11,3224.3,3223.3,2.267]
[1641643386335,0.11,3224.3,3223.6,1.5]
[1641643386537,0.11,3224.3,3223.7,0.110811]
[1641643386937,0.11,3224.3,3223.9,2.00479]
[1641643386938,0.640787,3224.2,3223.9,2.00479]
[1641643387136,0.374788,3224.3,3223.9,2.00479]
[1641643387537,0.11,3224.3,3223.9,2.00479]
[1641643388239,0.374788,3224.3,3223.9,2.00479]
[1641643389036,0.640787,3224.2,3223.9,2.00479]
[1641643389238,0.905575,3224.2,3223.9,2.00479]
[1641643389438,0.905575,3224.2,3223.1,2.00479]
[1641643390037,0.905575,3224.2,3223.1,3.50479]
[1641643391041,0.905575,3224.2,3223.6,2.00479]
[1641643391239,0.264788,3224.2,3223.7,0.110811]
[1641643392640,0.11,3224.3,3223.7,0.110811]
[1641643392847,0.11,3224.3,3223.7,1.610811]
[1641643393041,0.11,3224.3,3224.2,2.00479]
[1641643393342,0.11,3224.3,3224.2,2.115601]
[1641643397348,0.11,3225.3,3224.2,3.615601]
[1641643397548,0.11,3225.3,3224.4,1.5]
[1641643397748,0.11,3225.3,3224.4,2.2643]
[1641643398248,0.11,3225.3,3224.6,3.05016649]
[1641643398450,0.11,3225.3,3224.7,0.110811]
[1641643399047,0.11,3225.3,3225.0,2.00479]
[1641643400049,0.11,3225.3,3225.1,0.94818728]
[1641643400250,0.11,3225.3,3225.2,0.110811]
[1641643401252,0.11,3226.2,3225.2,1.610811]
[1641643402253,0.11,3226.2,3225.5,1.5]
[1641643402453,0.11,3226.2,3225.8,1.54958998]
[1641643402653,0.11,3226.2,3225.8,2.25038998]
[1641643403057,0.11,3226.2,3226.1,4.00958]
[1641643403455,0.11,3226.2,3226.1,4.120391]
[1641643403856,0.11,3226.2,3226.1,4.00958]
[1641643404955,0.11,3226.2,3226.1,2.00479]
[1641643408261,1.61,3226.2,3225.6,2.00479]
[1641643408461,1.61,3226.2,3224.9,1.55001992]
[1641643408462,5.5,3225.7,3224.9,1.55001992]
[1641643408661,5.5,3225.7,3225.0,0.110811]
[1641643408861,5.225566,3225.6,3224.1,16.7369]
[1641643409065,7.230356,3225.6,3224.9,2.00479]
[1641643411163,7.230356,3225.6,3224.9,2.64359]
[1641643412062,5.225566,3225.6,3225.0,0.110811]
[1641643412864,0.640787,3225.5,3224.9,2.64359]
[1641643413166,0.640787,3225.5,3225.4,2.00479]
[1641643413563,5.601335,3225.5,3225.4,2.00479]
[1641643414064,5.866123,3225.5,3225.4,2.00479]
[1641643414464,5.225336,3225.5,3225.4,2.00479]
[1641643414763,5.866123,3225.5,3225.4,2.00479]
[1641643416767,5.225336,3225.5,3225.4,2.00479]
[1641643416965,5.225336,3225.5,3225.4,2.82959]
[1641643417566,0.264788,3225.5,3225.4,2.82959]
[1641643425380,4.0,3225.7,3225.4,2.82959]
[1641643425981,4.960394,3225.6,3225.4,2.82959]
[1641643426181,5.865969,3225.6,3225.4,2.82959]
[1641643426383,5.225182,3225.6,3225.4,2.82959]
[1641643426582,0.11,3226.2,3225.4,2.82959]
[1641643426783,0.264788,3226.1,3225.4,2.82959]
[1641643426983,0.11,3226.2,3225.5,0.110811]
[1641643427183,0.11,3226.2,3225.9,2.00479]
[1641643428785,0.11,3226.2,3225.9,2.115601]
[1641643429088,0.11,3226.2,3225.9,3.66514536]
[1641643429385,0.11,3226.2,3225.9,3.55433436]
[1641643429885,0.11,3226.2,3225.9,2.00479]
[1641643430288,0.11,3226.2,3226.0,0.110811]
[1641643431289,0.11,3226.2,3225.9,2.00479]
[1641643431489,1.015575,3226.2,3225.9,2.00479]
[1641643431688,0.374788,3226.2,3225.9,2.00479]
[1641643431888,0.11,3226.2,3225.9,2.00479]
[1641643432088,0.11,3226.2,3225.9,2.115601]
[1641643433890,0.11,3226.2,3225.9,2.00479]
[1641643433891,0.264788,3226.1,3225.9,2.00479]
[1641643434394,0.11,3226.2,3225.9,2.00479]
[1641643434690,1.5,3226.0,3225.9,2.00479]
[1641643434892,15.689,3226.0,3225.4,2.00479]
[1641643435091,1.5,3225.6,3225.4,2.00479]
[1641643435692,1.764788,3225.6,3225.4,2.00479]
[1641643436894,0.264788,3225.6,3225.4,2.00479]
[1641643439003,1.764788,3225.6,3225.4,2.00479]
[1641643439201,0.264788,3225.6,3225.4,2.00479]
[1641643440705,0.264788,3225.6,3225.4,2.79879]
[1641643441906,2.00479,3225.9,3225.4,2.79879]
[1641643442306,2.00479,3225.9,3225.4,2.909601]
[1641643442506,2.00479,3226.6,3225.4,2.909601]
[1641643442707,0.264788,3226.1,3225.4,2.909601]
[1641643443308,0.264788,3226.1,3225.9,2.00479]
[1641643443508,2.00479,3226.6,3225.9,2.00479]
[1641643444511,2.00479,3226.6,3226.0,0.110811]
[1641643445109,0.264788,3226.4,3226.0,0.110811]
[1641643446810,0.264788,3226.4,3225.9,2.00479]
[1641643448011,0.750787,3226.2,3225.9,2.00479]
[1641643448312,0.264788,3226.1,3225.9,2.00479]
[1641643451815,3.78519682,3226.1,3225.9,2.00479]
[1641643452417,4.959702,3226.0,3225.9,2.00479]
[1641643453019,8.48011082,3226.0,3225.9,2.00479]
[1641643457123,8.48011082,3226.0,3225.4,2.00479]
[1641643457321,1.5,3225.7,3225.4,2.00479]
[1641643457721,5.225182,3225.6,3225.4,2.00479]
[1641643458122,0.640787,3225.5,3225.4,2.00479]
[1641643458324,4.16119582,3225.5,3225.4,2.00479]
[1641643458523,9.12174382,3225.5,3225.4,2.00479]
[1641643462226,8.48095682,3225.5,3225.4,2.00479]
[1641643463327,3.52040882,3225.5,3225.4,2.59529]
[1641643463525,0.264788,3225.6,3225.4,2.59529]
[1641643463725,2.00479,3225.9,3225.4,2.59529]
[1641643463925,3.52060401,3225.8,3225.4,2.59529]
[1641643464728,0.264788,3225.7,3225.4,2.00479]
[1641643465226,5.225105,3225.7,3225.4,2.00479]
[1641643466125,3.52060401,3225.6,3225.4,2.00479]
[1641643466526,3.78539201,3225.6,3225.4,2.00479]
[1641643467125,0.264788,3225.6,3225.4,2.00479]
[1641643470832,3.52060401,3225.8,3225.4,2.00479]
[1641643471032,3.52060401,3225.8,3225.4,2.84509]
[1641643472233,0.264788,3225.7,3225.4,2.84509]
[1641643473937,3.52060401,3225.8,3225.4,2.84509]
[1641643474938,0.264788,3225.9,3225.4,2.84509]
[1641643476043,3.78524127,3225.9,3225.4,2.84509]
[1641643476238,0.264788,3225.9,3225.4,2.84509]
[1641643476638,0.264788,3225.9,3225.4,2.955901]
[1641643476839,3.52045327,3225.8,3225.4,2.955901]
[1641643477044,0.264788,3225.9,3225.4,2.955901]
[1641643477842,3.78520514,3225.9,3225.4,2.955901]
[1641643478042,0.264788,3225.9,3225.4,2.955901]
[1641643478843,3.52036991,3226.1,3225.5,1.5]
[1641643479044,3.52036991,3226.1,3225.6,0.110811]
[1641643479245,0.11,3226.2,3225.6,0.110811]
[1641643479647,0.11,3226.2,3225.9,2.00479]
[1641643480546,0.11,3226.2,3226.0,0.110811]
[1641643481047,0.11,3226.2,3226.1,1.5]
[1641643481247,0.11,3226.2,3226.1,2.4044]
[1641643481646,0.11,3226.2,3226.1,2.90919]
[1641643491763,0.374788,3226.2,3226.1,2.90919]
[1641643494066,3.89499332,3226.2,3226.1,2.90919]
[1641643497472,0.374788,3226.2,3226.1,2.90919]
[1641643498173,0.11,3226.2,3226.1,2.90919]
[1641643501077,0.8289,3226.2,3226.1,2.00479]
[1641643501374,0.8289,3226.2,3225.4,0.78369113]
[1641643501575,1.5,3225.8,3225.4,0.78369113]
[1641643501774,0.640787,3225.7,3225.4,0.78369113]
[1641643502174,0.264788,3225.6,3225.4,0.78369113]
[1641643502774,2.00479,3225.8,3225.4,0.78369113]
[1641643502976,2.269578,3225.8,3225.4,0.78369113]
[1641643503578,2.269578,3225.8,3225.2,0.89450213]
[1641643503776,2.910365,3225.8,3225.2,0.89450213]
[1641643504980,2.910365,3225.8,3225.3,1.27849042]
[1641643505981,2.910365,3225.8,3225.2,0.78369113]
[1641643505982,2.00479,3225.8,3225.2,0.78369113]
[1641643506183,2.00479,3225.8,3225.3,0.110811]
[1641643506680,2.269578,3225.8,3225.3,0.110811]
[1641643506883,2.269578,3225.8,3225.3,0.89450213]
[1641643511590,3.769578,3225.8,3225.3,0.78369113]
[1641643511991,4.960394,3225.7,3225.3,0.78369113]
[1641643512391,0.264788,3225.6,3225.3,0.78369113]
[1641643512792,4.960548,3225.5,3225.3,0.78369113]
[1641643513192,0.264788,3225.4,3225.3,0.78369113]
[1641643513393,0.264788,3225.4,3225.1,2.00479]
[1641643519502,1.5,3225.2,3224.5,3.31672814]
[1641643519700,1.5,3225.0,3224.5,3.31672814]
[1641643519900,9.806401,3225.1,3224.5,3.31672814]
[1641643520202,4.961624,3224.9,3224.5,3.31672814]
[1641643520402,4.961548,3225.0,3224.5,3.31672814]
[1641643520601,0.264788,3224.9,3224.5,3.31672814]
[1641643520800,5.226489,3224.9,3224.5,3.31672814]
[1641643521315,5.226489,3224.9,3224.5,2.00479]
[1641643523412,5.226489,3224.9,3224.6,0.49489814]
[1641643523711,4.961701,3224.9,3224.6,1.30349814]
[1641643524013,2.00479,3225.1,3224.6,1.30349814]
[1641643524211,2.269578,3225.1,3224.6,1.30349814]
[1641643524411,2.192821,3225.0,3224.6,1.30349814]
[1641643524611,7.154292,3225.0,3224.6,1.30349814]
[1641643524811,0.264788,3224.9,3224.6,1.30349814]
[1641643525813,2.00479,3225.8,3224.8,5.05467779]
[1641643526012,2.00479,3225.8,3225.3,1.5]
[1641643526212,2.269578,3225.8,3225.3,2.1287]